bitfinex/quotes_SOLUSD_20250413
["timestamp","ask_amount","ask_price","bid_price","bid_amount"]
[1744582580823,12.72411467,127.17,127.11,31.34376353]
[1744582581343,0.03,127.17,127.13,12.69411467]
[1744582581554,26.03,127.17,127.13,12.69411467]
[1744582581925,26.03,127.17,127.16,12.69411467]
[1744582581926,0.03,127.17,127.16,12.69411467]
[1744582582331,0.03,127.17,127.16,37.7771251]
[1744582582532,0.03,127.17,127.16,25.08301043]
[1744582582741,0.03,127.17,127.16,37.7771251]
[1744582586356,0.03,127.17,127.16,37.63496353]
[1744582587839,0.03,127.17,127.16,37.7771251]
[1744582588039,0.03,127.17,127.16,37.63496353]
[1744582589044,0.03,127.17,127.16,37.7771251]
[1744582590252,0.03,127.17,127.16,38.06144824]
[1744582590563,0.03,127.23,127.19,18.64964886]
[1744582590858,0.03,127.23,127.21,12.69411467]
[1744582591026,0.03,127.23,127.2,31.34376353]
[1744582593634,0.03,127.23,127.2,18.64964886]
[1744582594051,12.72411467,127.23,127.18,12.69411467]
[1744582594258,20.85821467,127.22,127.17,31.34376353]
[1744582594437,8.1641,127.22,127.18,12.69411467]
[1744582594758,14.4525,127.22,127.17,31.34376353]
[1744582595134,27.14661467,127.22,127.17,31.34376353]
[1744582596459,14.4525,127.22,127.17,37.63446353]
[1744582596633,14.4525,127.22,127.17,31.34376353]
[1744582597860,27.14661467,127.22,127.17,18.64964886]
[1744582598047,14.4525,127.22,127.17,31.34376353]
[1744582598355,14.4525,127.22,127.18,12.69411467]
[1744582599155,12.69411467,127.21,127.15,26.0]
[1744582599361,8.1641,127.22,127.2,12.69411467]
[1744582599562,1.6599,127.22,127.2,12.69411467]
[1744582599760,1.6599,127.22,127.21,12.69411467]
[1744582599943,0.03,127.23,127.21,12.69411467]
[1744582606370,0.03,127.23,127.2,12.69411467]
[1744582606976,0.03,127.23,127.22,31.34376353]
[1744582607346,0.03,127.23,127.21,12.69411467]
[1744582607964,0.03,127.23,127.18,24.93964886]
[1744582608172,0.03,127.23,127.2,12.69411467]
[1744582608371,0.03,127.23,127.18,24.93984886]
[1744582608547,0.03,127.23,127.2,12.69411467]
[1744582609148,0.03,127.23,127.2,8.11651105]
[1744582615169,0.03,127.23,127.2,14.40561105]
[1744582615364,0.03,127.23,127.2,8.11651105]
[1744582616259,0.03,127.23,127.18,6.2902]
[1744582616459,0.03,127.23,127.19,8.11651105]
[1744582616861,6.3178,127.23,127.19,8.11651105]
[1744582618077,0.03,127.23,127.21,26.76615991]
[1744582618377,0.03,127.23,127.22,8.11651105]
[1744582619180,0.03,127.23,127.22,33.05445991]
[1744582620180,0.03,127.23,127.22,26.76615991]
[1744582620478,0.03,127.23,127.22,33.05445991]
[1744582620876,0.03,127.23,127.22,33.19662148]
[1744582623457,0.03,127.23,127.22,33.48094462]
[1744582626579,0.03,127.23,127.22,33.19662148]
[1744582626878,0.03,127.26,127.25,26.0]
[1744582627079,0.03,127.26,127.25,52.90832148]
[1744582627981,0.03,127.26,127.25,52.76615991]
[1744582628861,0.03,127.26,127.25,8.11651105]
[1744582629071,0.03,127.26,127.24,8.11651105]
[1744582630986,0.03,127.26,127.25,8.11651105]
[1744582631289,0.03,127.26,127.25,26.76615991]
[1744582632580,0.03,127.26,127.24,26.0]
[1744582632770,0.03,127.26,127.25,8.11651105]
[1744582633174,0.03,127.26,127.25,26.76615991]
[1744582634087,0.03,127.26,127.25,33.19512148]
[1744582635094,0.03,127.26,127.25,33.47944462]
[1744582635466,0.03,127.26,127.25,33.05295991]
[1744582639386,0.03,127.26,127.25,33.19512148]
[1744582639767,0.03,127.26,127.25,33.05295991]
[1744582643105,0.03,127.26,127.23,18.64964886]
[1744582643475,0.03,127.26,127.23,8.11651105]
[1744582644000,1.6449,127.26,127.22,8.11651105]
[1744582644491,16.35701105,127.26,127.21,8.11651105]
[1744582644689,16.35701105,127.26,127.21,26.76615991]
[1744582645607,6.2868,127.25,127.21,26.76615991]
[1744582646211,8.11651105,127.24,127.19,8.11651105]
[1744582646387,8.11651105,127.24,127.19,26.76615991]
[1744582647692,8.11651105,127.23,127.19,18.64964886]
[1744582647896,6.2872,127.25,127.2,8.11651105]
[1744582648199,14.40371105,127.25,127.2,8.11651105]
[1744582649103,6.2872,127.25,127.2,8.11651105]
[1744582649302,14.40371105,127.25,127.2,8.11651105]
[1744582651204,14.40371105,127.25,127.2,14.40561105]
[1744582652705,14.40371105,127.25,127.19,33.05565991]
[1744582653786,14.40371105,127.25,127.2,8.11651105]
[1744582654395,8.11651105,127.23,127.18,8.11651105]
[1744582655303,8.11651105,127.21,127.17,0.063]
[1744582655604,1.6327,127.22,127.18,8.11651105]
[1744582655799,9.74921105,127.22,127.17,8.17951105]
[1744582655999,7.9213,127.22,127.17,14.47001105]
[1744582656200,16.03781105,127.22,127.17,14.47001105]
[1744582656395,8.11651105,127.21,127.17,0.063]
[1744582656595,9.74921105,127.22,127.17,14.47011105]
[1744582656803,1.6327,127.22,127.18,8.11651105]
[1744582658209,7.921,127.22,127.18,8.11651105]
[1744582659415,16.03751105,127.22,127.17,26.82915991]
[1744582659921,8.11651105,127.21,127.17,0.063]
[1744582660086,8.11651105,127.19,127.17,0.063]
[1744582660289,9.74921105,127.18,127.17,0.063]
[1744582660493,10.03353419,127.18,127.17,0.063]
[1744582661341,10.03353419,127.18,127.14,0.063]
[1744582661498,6.2907,127.17,127.14,0.063]
[1744582661701,8.11651105,127.16,127.14,0.063]
[1744582662005,14.40721105,127.17,127.14,0.063]
[1744582662199,8.11651105,127.16,127.14,0.063]
[1744582662401,8.11651105,127.15,127.14,0.063]
[1744582662625,14.49081105,127.15,127.14,0.063]
[1744582662825,14.77513419,127.15,127.14,0.063]
[1744582663008,16.40783419,127.15,127.14,0.063]
[1744582663630,22.69953419,127.15,127.14,0.063]
[1744582664017,22.41521105,127.15,127.14,0.063]
[1744582664331,1.6327,127.13,127.1,0.063]
[1744582664529,8.11651105,127.12,127.1,0.063]
[1744582665935,6.2937,127.11,127.1,0.063]
[1744582667238,14.41021105,127.11,127.1,0.063]
[1744582667547,6.2937,127.11,127.1,0.063]
[1744582668038,6.2933,127.12,127.1,0.063]
[1744582669339,21.04063419,127.11,127.1,0.063]
[1744582670946,21.18279576,127.11,127.1,0.0001]
[1744582671243,30.04279576,127.11,127.1,0.0001]
[1744582673235,29.90063419,127.11,127.1,0.0001]
[1744582675740,0.14216157,127.1,127.09,0.0001]
[1744582675937,21.78412314,127.11,127.09,0.0001]
[1744582676120,8.11651105,127.1,127.09,0.0001]
[1744582677524,14.41071105,127.1,127.09,0.0001]
[1744582679244,6.2942,127.1,127.09,0.0001]
[1744582679628,14.41071105,127.1,127.09,0.0001]
[1744582681238,99.32339576,127.1,127.09,0.0001]
[1744582681457,99.32339576,127.1,127.08,0.063]
[1744582681458,91.44299576,127.09,127.06,0.063]
[1744582681756,8.25867262,127.07,127.06,0.063]
[1744582682044,8.06446157,127.06,127.05,0.063]
[1744582682247,25.32529576,127.06,127.05,0.063]
[1744582682752,8.25867262,127.03,127.02,0.063]
[1744582683146,12.87342739,127.03,127.02,0.063]
[1744582683329,19.17112739,127.03,127.02,0.063]
[1744582684844,19.45545053,127.03,127.0,0.063]
[1744582685151,12.87342739,127.02,127.0,0.063]
[1744582685360,19.17162739,127.02,127.0,0.063]
[1744582685736,12.87342739,127.01,127.0,0.063]
[1744582685933,21.73342739,127.01,127.0,0.063]
[1744582686143,21.59126582,127.01,127.0,0.063]
[1744582687047,27.88996582,127.01,127.0,0.063]
[1744582687445,0.42648471,126.99,126.97,0.063]
[1744582687746,13.01558896,126.98,126.97,0.063]
[1744582688233,19.02996582,127.01,126.97,0.063]
[1744582688649,12.73126582,127.0,126.97,0.063]
[1744582688838,12.73126582,126.98,126.97,0.063]
[1744582689040,19.45795053,126.98,126.97,0.063]
[1744582689451,44.36939939,126.98,126.97,0.063]
[1744582690544,26.28432314,126.95,126.94,0.063]
[1744582690742,47.87558896,126.95,126.94,0.063]
[1744582691048,21.87558896,126.95,126.94,0.063]
[1744582691251,28.17718896,126.95,126.94,0.063]
[1744582691461,0.28432314,126.94,126.91,0.063]
[1744582691657,0.42648471,126.9,126.88,0.063]
[1744582691857,0.42648471,126.9,126.86,0.063]
[1744582691858,0.14216157,126.87,126.86,0.063]
[1744582692044,13.15775053,126.87,126.86,0.063]
[1744582693161,19.46335053,126.87,126.86,0.063]
[1744582693359,19.32118896,126.87,126.86,0.063]
[1744582694854,6.58992314,126.87,126.86,0.063]
[1744582695163,19.03686582,126.87,126.86,0.063]
[1744582696648,99.08848471,126.89,126.86,0.063]
[1744582696649,12.73126582,126.89,126.86,0.063]
[1744582696964,6.3016,126.95,126.89,18.64964886]
[1744582697139,6.3016,126.95,126.91,12.73126582]
[1744582697347,6.3002,126.98,126.93,12.73126582]
[1744582697643,12.73126582,126.96,126.91,12.73126582]
[1744582697865,12.73126582,126.96,126.9,44.64964886]
[1744582698158,12.73126582,126.96,126.91,12.73126582]
[1744582698666,22.0507,126.98,126.91,12.73126582]
[1744582698839,12.73126582,126.97,126.92,12.73126582]
[1744582699044,12.73126582,126.96,126.91,12.73126582]
[1744582700651,19.03266582,126.96,126.91,19.03476582]
[1744582700854,6.3002,126.98,126.93,12.73126582]
[1744582701053,6.3002,126.98,126.92,18.64964886]
[1744582701054,12.73126582,126.97,126.92,12.73126582]
[1744582701253,12.73126582,126.96,126.91,12.73126582]
[1744582701459,12.73126582,126.95,126.9,38.73126582]
[1744582701967,0.28432314,126.96,126.89,12.73126582]
[1744582701968,13.01558896,126.94,126.89,12.73126582]
[1744582702166,12.73126582,126.93,126.88,12.73126582]
[1744582702354,12.73126582,126.91,126.86,19.10026582]
[1744582702761,19.03476582,126.92,126.87,12.73126582]
[1744582703160,6.3035,126.92,126.86,12.79426582]
[1744582703364,12.73126582,126.91,126.86,12.79426582]
[1744582703966,19.03476582,126.92,126.87,12.73126582]
[1744582704267,19.03476582,126.92,126.86,0.063]
[1744582704268,19.31838896,126.93,126.88,12.73126582]
[1744582705966,110.77356582,126.94,126.89,12.73126582]
[1744582706474,13.01558896,126.93,126.88,12.73126582]
[1744582706670,12.73126582,126.93,126.88,19.03626582]
[1744582706880,27.87356582,126.94,126.89,12.73126582]
[1744582707377,12.73126582,126.93,126.88,6.305]
[1744582707576,27.87356582,126.94,126.89,12.73126582]
[1744582707783,8.84,126.94,126.89,19.03566582]
[1744582707964,98.6529,126.97,126.89,19.03566582]
[1744582707965,101.93196582,126.97,126.92,12.73126582]
[1744582708155,8.84,126.98,126.94,12.73126582]
[1744582708472,12.73126582,126.99,126.95,12.73126582]
[1744582708667,12.73126582,126.99,126.94,38.73126582]
[1744582708855,12.73126582,126.99,126.94,26.0]
[1744582709193,12.73126582,126.98,126.93,12.73126582]
[1744582709387,12.73126582,126.99,126.94,12.73126582]
[1744582709884,19.03096582,126.99,126.94,12.73126582]
[1744582710192,12.73126582,126.98,126.93,12.73126582]
[1744582710685,13.01558896,126.98,126.93,12.73126582]
[1744582710897,13.01558896,126.98,126.91,33.03654886]
[1744582711098,12.73126582,126.97,126.92,12.73126582]
[1744582711267,13.01558896,126.98,126.93,12.73126582]
[1744582712062,19.31598896,126.98,126.93,19.03376582]
[1744582712777,19.03106582,126.99,126.94,12.73126582]
[1744582712981,89.1993,127.0,126.96,12.73126582]
[1744582713382,101.93056582,127.0,126.95,12.73126582]
[1744582715285,89.1993,127.0,126.96,12.73126582]
[1744582715779,12.73126582,126.99,126.94,38.73126582]
[1744582715960,0.42648471,127.01,126.96,12.73126582]
[1744582715961,19.03006582,127.01,126.96,12.73126582]
[1744582716161,19.09256582,127.02,126.97,12.73126582]
[1744582716480,0.063,127.02,126.99,12.73126582]
[1744582717063,0.063,127.02,126.98,12.73126582]
[1744582717471,0.063,127.02,126.99,12.73126582]
[1744582717676,19.09256582,127.02,126.97,12.73126582]
[1744582717895,0.063,127.02,126.98,12.73126582]
[1744582718099,0.063,127.02,126.99,12.73126582]
[1744582718272,0.063,127.02,127.01,12.73126582]
[1744582718670,0.063,127.02,127.0,12.73126582]
[1744582719166,0.063,127.02,126.98,6.3]
[1744582719365,0.063,127.02,126.99,12.73126582]
[1744582719565,0.063,127.02,126.98,12.73126582]
[1744582720980,12.79426582,127.02,126.97,18.82386582]
[1744582721472,12.79426582,127.02,126.97,12.73126582]
[1744582721675,0.063,127.02,126.98,12.73126582]
[1744582721874,0.063,127.02,126.99,12.73126582]
[1744582722074,0.063,127.02,126.98,12.73126582]
[1744582722270,12.73126582,127.0,126.94,12.3944]
[1744582722587,0.34732314,127.02,126.94,12.3944]
[1744582722588,12.73126582,126.99,126.95,12.73126582]
[1744582722770,12.73126582,127.0,126.94,25.12566582]
[1744582722966,12.73126582,127.0,126.95,12.73126582]
[1744582723169,19.02996582,127.01,126.96,12.73126582]
[1744582724096,12.73126582,127.0,126.95,12.73126582]
[1744582724596,12.73126582,126.99,126.94,12.73126582]
[1744582724771,12.73126582,126.99,126.93,24.95224886]
[1744582724971,12.73126582,126.99,126.94,12.73126582]
[1744582725175,12.73126582,126.97,126.93,26.0]
[1744582725382,12.73126582,126.97,126.92,12.73126582]
[1744582725580,6.3002,126.98,126.91,31.38091468]
[1744582725581,12.73126582,126.96,126.91,31.38091468]
[1744582725781,12.73126582,126.96,126.9,6.3037]
[1744582725980,12.73126582,126.96,126.89,12.73126582]
[1744582725981,12.73126582,126.94,126.89,12.73126582]
[1744582726467,12.73126582,126.95,126.89,12.73126582]
[1744582726785,12.73126582,126.95,126.9,12.73126582]
[1744582726980,12.87342739,126.94,126.87,6.0926]
[1744582727181,6.3028,126.93,126.88,12.73126582]
[1744582727484,19.03406582,126.93,126.88,12.73126582]
[1744582730389,6.3028,126.93,126.88,12.73126582]
[1744582730770,19.03406582,126.93,126.88,12.73126582]
[1744582730987,19.03406582,126.93,126.87,19.03676582]
[1744582731291,19.03406582,126.93,126.88,12.73126582]
[1744582731592,19.03406582,126.93,126.87,6.3055]
[1744582731789,19.03406582,126.93,126.88,12.73126582]
[1744582731969,6.3028,126.93,126.88,12.73126582]
[1744582732169,6.3028,126.93,126.89,12.73126582]
[1744582732489,19.03256582,126.96,126.91,12.73126582]
[1744582732691,12.73126582,126.95,126.9,26.0]
[1744582732886,12.73126582,126.95,126.9,38.73126582]
[1744582733493,6.3013,126.96,126.9,26.0]
[1744582733681,12.73126582,126.95,126.9,38.73126582]
[1744582734396,19.03326582,126.95,126.9,38.73126582]
[1744582735594,19.03326582,126.95,126.9,45.03526582]
[1744582735897,6.302,126.95,126.91,12.73126582]
[1744582736780,19.03246582,126.96,126.91,19.03476582]
[1744582736984,8.1121,126.98,126.93,12.73126582]
[1744582737198,1.5589,126.98,126.94,12.73126582]
[1744582737385,19.03116582,126.99,126.94,12.73126582]
[1744582738087,12.73126582,126.97,126.91,6.3035]
[1744582738279,12.73126582,126.97,126.92,12.73126582]
[1744582739000,6.3011,126.96,126.92,12.73126582]
[1744582739380,19.03236582,126.96,126.91,19.03476582]
[1744582739578,19.03216582,126.97,126.91,6.3035]
[1744582739779,19.03216582,126.97,126.92,12.73126582]
[1744582739978,19.03156582,126.98,126.93,12.73126582]
[1744582740387,19.03116582,126.99,126.94,12.73126582]
[1744582740788,19.03116582,126.99,126.9,26.0]
[1744582740789,12.73126582,126.95,126.9,26.0]
[1744582740987,19.03336582,126.94,126.89,12.73126582]
[1744582741189,12.73126582,126.93,126.87,12.73126582]
[1744582741596,12.73126582,126.92,126.87,19.03666582]
[1744582741902,12.73126582,126.92,126.87,12.73126582]
[1744582742094,12.73126582,126.92,126.87,19.03686582]
[1744582742280,12.73126582,126.93,126.87,19.03686582]
[1744582742480,6.3021,126.94,126.88,12.73126582]
[1744582742697,12.73126582,126.93,126.87,19.03686582]
[1744582742983,12.73126582,126.92,126.87,19.03686582]
[1744582743191,19.03436582,126.93,126.87,19.03686582]
[1744582743402,19.03436582,126.93,126.88,12.73126582]
[1744582744001,12.73126582,126.93,126.88,31.38091468]
[1744582745203,12.73126582,126.93,126.88,12.73126582]
[1744582745410,19.03406582,126.93,126.88,12.73126582]
[1744582745705,19.03406582,126.93,126.88,19.03626582]
[1744582746406,19.03406582,126.93,126.87,37.68631468]
[1744582746705,12.73126582,126.92,126.87,37.68631468]
[1744582747083,6.3028,126.93,126.87,37.68631468]
[1744582747084,23.8271,126.99,126.91,31.38091468]
[1744582747282,19.03146582,126.98,126.93,12.73126582]
[1744582747482,19.03146582,126.98,126.92,19.03436582]
[1744582748004,12.73126582,126.97,126.92,19.03436582]
[1744582749300,19.03146582,126.98,126.93,12.73126582]
[1744582749698,0.063,126.99,126.95,12.73126582]
[1744582750199,12.73126582,126.98,126.92,37.68401468]
[1744582750403,12.79426582,126.99,126.94,12.73126582]
[1744582751503,12.73126582,126.98,126.94,6.3021]
[1744582752107,12.79426582,126.99,126.94,19.03336582]
[1744582752409,0.063,126.99,126.95,12.73126582]
[1744582752980,0.063,126.99,126.95,31.38091468]
[1744582753186,12.73126582,126.98,126.94,19.03336582]
[1744582753386,12.73126582,126.98,126.94,6.3021]
[1744582753595,19.03146582,126.98,126.93,19.03376582]
[1744582753909,12.73126582,126.97,126.92,37.68381468]
[1744582754704,12.73126582,126.98,126.93,12.73126582]
[1744582755487,19.03146582,126.98,126.93,12.73126582]
[1744582755688,19.03146582,126.98,126.93,19.03386582]
[1744582756314,19.03146582,126.98,126.93,6.3026]
[1744582756487,12.73126582,126.97,126.91,19.03476582]
[1744582756688,19.03146582,126.98,126.93,12.73126582]
[1744582757008,19.03146582,126.98,126.91,6.3035]
[1744582757009,0.063,126.99,126.96,12.73126582]
[1744582757303,0.063,126.99,126.98,31.80739939]
[1744582757505,0.063,127.02,126.98,31.80739939]
[1744582757703,0.063,127.02,127.01,12.73126582]
[1744582758098,0.063,127.02,127.01,19.02996582]
[1744582759295,0.063,127.02,127.01,26.64888023]
[1744582759497,0.063,127.02,127.0,6.2991]
[1744582759689,0.063,127.02,127.0,20.35018023]
[1744582761701,0.063,127.02,127.0,26.64928023]
[1744582761899,0.063,127.02,127.01,20.35018023]
[1744582762101,0.063,127.02,127.0,26.64928023]
[1744582764121,0.063,127.02,127.01,20.35018023]
[1744582767220,0.063,127.02,127.01,26.64888023]
[1744582767523,0.063,127.02,127.01,45.29852909]
[1744582769202,0.063,127.04,127.01,45.7250138]
[1744582769406,0.063,127.04,127.03,65.28415223]
[1744582770223,0.063,127.04,127.03,71.58185223]
[1744582770817,0.063,127.04,127.03,71.7240138]
[1744582773826,0.063,127.05,127.04,18.79181043]
[1744582774033,0.063,127.05,127.04,59.49217089]
[1744582774221,0.0001,127.05,127.04,59.77649403]
[1744582775833,0.0001,127.05,127.04,66.07369403]
[1744582776415,0.0001,127.05,127.04,45.58135223]
[1744582776907,0.0001,127.05,127.04,45.7235138]
[1744582777135,0.0001,127.05,127.04,66.07369403]
[1744582778219,0.0001,127.05,127.04,45.7235138]
[1744582779115,0.0001,127.05,127.04,38.08077074]
[1744582782529,0.0001,127.05,127.04,37.93860917]
[1744582785139,0.0431,127.06,127.05,0.14216157]
[1744582785339,0.063,127.11,127.07,45.07613357]
[1744582785545,0.063,127.11,127.1,12.70743717]
[1744582787043,0.063,127.11,127.08,0.28432314]
[1744582787339,0.063,127.11,127.1,19.00163717]
[1744582790224,0.063,127.11,127.1,37.93560917]
[1744582792247,0.063,127.11,127.1,38.07777074]
[1744582792551,0.063,127.11,127.1,37.93560917]
[1744582794454,0.063,127.11,127.1,38.07777074]
[1744582794745,0.063,127.13,127.12,44.64964886]
[1744582794931,0.063,127.13,127.12,57.35708603]
[1744582796048,0.063,127.13,127.12,57.64140917]
[1744582796650,0.063,127.13,127.12,63.93460917]
[1744582797039,0.063,127.13,127.12,63.65028603]
[1744582798745,0.063,127.13,127.12,38.70743717]
[1744582799254,0.063,127.13,127.12,45.00063717]
[1744582800752,0.063,127.13,127.12,63.65028603]
[1744582802733,0.063,127.13,127.12,38.70743717]
[1744582802936,0.063,127.13,127.08,6.2952]
[1744582803141,6.091,127.13,127.09,12.70743717]
[1744582803964,6.091,127.13,127.11,12.70743717]
[1744582804261,0.063,127.13,127.12,12.70743717]
[1744582804841,0.063,127.13,127.12,19.00063717]
[1744582806057,0.063,127.13,127.12,6.2932]
[1744582806246,0.063,127.13,127.1,6.2942]
[1744582806447,0.063,127.13,127.12,12.70743717]
[1744582807044,0.063,127.13,127.12,19.00063717]
[1744582810938,0.063,127.13,127.12,37.65028603]
[1744582811156,0.063,127.13,127.12,19.00063717]
[1744582811463,0.063,127.13,127.12,12.70743717]
[1744582812466,0.063,127.13,127.09,38.70743717]
[1744582812851,0.063,127.13,127.1,12.70743717]
[1744582813057,0.063,127.13,127.11,12.70743717]
[1744582813642,0.063,127.13,127.1,12.70743717]
[1744582813979,0.063,127.13,127.11,12.70743717]
[1744582817857,0.063,127.13,127.1,6.2941]
[1744582818068,0.063,127.13,127.11,12.70743717]
[1744582819258,0.063,127.13,127.06,82.663]
[1744582819462,19.16103717,127.1,127.06,0.063]
[1744582819660,12.70743717,127.09,127.06,0.063]
[1744582819968,25.45553717,127.1,127.06,0.063]
[1744582820150,12.70743717,127.09,127.06,0.063]
[1744582820769,6.4536,127.1,127.07,12.70743717]
[1744582821544,1.5972,127.12,127.09,12.70743717]
[1744582821745,1.5972,127.12,127.08,12.70743717]
[1744582822066,7.8904,127.12,127.08,12.70743717]
[1744582822368,1.5972,127.12,127.08,12.70743717]
[1744582822567,7.8905,127.12,127.08,12.70743717]
[1744582823569,1.5972,127.12,127.09,12.70743717]
[1744582823967,0.063,127.13,127.11,12.70743717]
[1744582824349,6.3558,127.13,127.08,18.64964886]
[1744582824551,6.3558,127.13,127.09,12.70743717]
[1744582824752,0.063,127.13,127.09,12.70743717]
[1744582824962,0.063,127.13,127.1,12.70743717]
[1744582825871,0.063,127.13,127.11,12.70743717]
[1744582826169,0.063,127.13,127.12,12.70743717]
[1744582826369,0.063,127.13,127.12,31.35708603]
[1744582828472,0.063,127.13,127.12,37.65028603]
[1744582829754,0.063,127.15,127.14,45.07613357]
[1744582830065,0.063,127.18,127.14,38.70743717]
[1744582830263,0.063,127.18,127.15,44.64964886]
[1744582830462,0.063,127.18,127.16,12.70743717]
[1744582831175,0.063,127.18,127.17,12.70743717]
[1744582832672,0.063,127.18,127.15,32.2916]
[1744582832870,0.063,127.18,127.16,12.70743717]
[1744582833271,0.063,127.18,127.17,12.70743717]
[1744582833994,0.063,127.18,127.17,18.99813717]
[1744582834180,0.063,127.18,127.17,37.64778603]
[1744582834858,0.063,127.18,127.15,26.0]
[1744582835060,0.063,127.18,127.16,12.70743717]
[1744582835259,0.063,127.18,127.17,12.70743717]
[1744582835883,0.063,127.18,127.17,18.99813717]
[1744582838059,0.063,127.18,127.17,6.2907]
[1744582838261,0.063,127.18,127.17,18.99813717]
[1744582839270,0.063,127.18,127.17,12.70743717]
[1744582839484,0.063,127.18,127.16,31.35708603]
[1744582839782,0.063,127.18,127.14,6.292]
[1744582839966,0.063,127.18,127.17,12.70743717]
[1744582841466,0.063,127.18,127.14,18.79181043]
[1744582841667,0.063,127.18,127.17,12.70743717]
[1744582843490,0.063,127.18,127.17,18.99813717]
[1744582844193,0.063,127.18,127.17,37.64778603]
[1744582847185,0.063,127.18,127.17,33.05733375]
[1744582847385,0.063,127.18,127.17,33.48381846]
[1744582847798,0.03,127.19,127.18,18.64964886]
[1744582848108,0.03,127.19,127.18,113.33954128]
[1744582849203,0.03,127.19,127.18,119.62974128]
[1744582849402,0.063,127.22,127.19,0.42648471]
[1744582849698,0.063,127.22,127.21,26.76663375]
[1744582850781,0.063,127.22,127.21,8.11698489]
[1744582850978,4.12144052,127.29,127.24,26.0]
[1744582851180,0.03,127.32,127.28,40.58492445]
[1744582851385,0.03,127.32,127.27,6.2858]
[1744582851583,0.03,127.32,127.28,18.64964886]
[1744582851912,4.0894913,127.37,127.28,18.64964886]
[1744582851913,8.243,127.39,127.35,26.0]
[1744582852203,12.1920463,127.41,127.38,8.11698489]
[1744582852506,12.1920463,127.41,127.4,8.11698489]
[1744582852685,12.1920463,127.41,127.38,8.11698489]
[1744582853078,12.1920463,127.41,127.39,8.11698489]
[1744582853302,12.1920463,127.41,127.39,12.6438466]
[1744582853476,12.1920463,127.41,127.38,12.6438466]
[1744582853979,12.6438466,127.41,127.36,26.0]
[1744582854185,12.6438466,127.41,127.36,38.6438466]
[1744582854394,8.243,127.43,127.36,38.6438466]
[1744582854695,12.6438466,127.42,127.36,38.6438466]
[1744582854995,18.9226466,127.42,127.36,38.6438466]
[1744582855495,18.9226466,127.42,127.36,12.6438466]
[1744582855692,14.521,127.43,127.38,12.6438466]
[1744582855887,8.243,127.43,127.39,12.6438466]
[1744582856086,8.243,127.43,127.41,12.6438466]
[1744582856287,1.6341,127.43,127.4,12.6438466]
[1744582856691,1.6341,127.43,127.39,12.6438466]
[1744582857381,1.6341,127.43,127.4,12.6438466]
[1744582858088,12.6438466,127.42,127.37,26.0]
[1744582858283,12.6438466,127.42,127.37,38.6438466]
[1744582859396,6.2789,127.41,127.37,26.0]
[1744582859595,12.6438466,127.4,127.35,12.6438466]
[1744582859801,18.9227466,127.41,127.35,12.6438466]
[1744582860496,12.6438466,127.4,127.35,12.6438466]
[1744582860799,6.2795,127.4,127.35,12.6438466]
[1744582861180,6.2795,127.4,127.36,12.6438466]
[1744582861526,8.86216157,127.42,127.33,6.2828]
[1744582861675,8.72,127.42,127.38,12.6438466]
[1744582862274,97.46226974,127.43,127.38,12.6438466]
[1744582862690,84.5341,127.43,127.38,12.6438466]
[1744582863194,90.812,127.43,127.38,12.6438466]
[1744582863499,7.912,127.43,127.39,12.6438466]
[1744582863690,1.6341,127.43,127.41,12.6438466]
[1744582864000,7.912,127.43,127.4,12.6438466]
[1744582864501,1.6341,127.43,127.4,12.6438466]
[1744582864718,8.72,127.45,127.42,12.6438466]
[1744582865032,14.9971,127.45,127.42,12.6438466]
[1744582865404,14.9971,127.45,127.41,12.6438466]
[1744582865595,8.72,127.45,127.42,12.6438466]
[1744582865799,12.8855,127.46,127.42,12.6438466]
[1744582866012,12.8855,127.46,127.43,12.6438466]
[1744582866219,12.8855,127.46,127.42,12.6438466]
[1744582867814,12.8855,127.46,127.43,12.6438466]
[1744582869307,12.8855,127.46,127.42,12.6438466]
[1744582870216,12.6438466,127.43,127.35,25.07371043]
[1744582870406,12.6438466,127.43,127.38,12.6438466]
[1744582870925,12.6438466,127.44,127.38,12.6438466]
[1744582871415,18.9217466,127.43,127.35,25.07371043]